bitfinex-derivatives/quotes_BTCF0:USTF0_20241120
["timestamp","ask_amount","ask_price","bid_price","bid_amount"]
[1732085116241,0.054014,92472.0,92471.0,0.61989349]
[1732085117242,0.054014,92472.0,92471.0,0.61973818]
[1732085117750,0.054014,92472.0,92471.0,0.3608]
[1732085118342,0.054014,92472.0,92471.0,0.25888451]
[1732085118856,0.06629063,92473.0,92469.0,0.25888456]
[1732085119242,0.06629063,92473.0,92468.0,0.25888456]
[1732085119243,0.054016,92469.0,92468.0,0.25888456]
[1732085120142,0.09436,92474.0,92467.0,0.25888456]
[1732085120347,0.09436,92474.0,92472.0,0.19410723]
[1732085120348,0.054013,92473.0,92472.0,0.19410723]
[1732085120946,0.13669401,92474.0,92469.0,0.25888456]
[1732085120947,0.054015,92470.0,92469.0,0.25888456]
[1732085121546,0.054017,92467.0,92465.0,0.06629063]
[1732085122443,0.09436,92472.0,92465.0,0.06629063]
[1732085122761,0.054018,92466.0,92465.0,0.06629063]
[1732085127244,0.054018,92466.0,92465.0,0.09939063]
[1732085134646,0.04233401,92474.0,92465.0,0.09939063]
[1732085134647,0.04233401,92474.0,92468.0,0.054014]
[1732085134956,0.054012,92474.0,92473.0,0.3608]
[1732085135256,0.054012,92474.0,92473.0,0.61954879]
[1732085135454,0.054012,92474.0,92473.0,0.3608]
[1732085136157,0.054012,92474.0,92473.0,0.61954879]
[1732085136669,0.054012,92474.0,92473.0,0.3608]
[1732085137656,0.054012,92474.0,92472.0,0.0333]
[1732085137657,0.09344,92478.0,92460.0,0.31173114]
[1732085137864,0.09344,92478.0,92476.0,0.25887709]
[1732085137865,0.054011,92477.0,92476.0,0.25887709]
[1732085138056,0.054013,92473.0,92472.0,0.25887709]
[1732085138258,0.054013,92472.0,92471.0,0.25887709]
[1732085138455,0.05402,92462.0,92456.0,0.059423]
[1732085138659,0.05402,92462.0,92457.0,0.32845949]
[1732085138861,0.05402,92461.0,92456.0,0.054023]
[1732085139064,0.05402,92461.0,92457.0,0.32845661]
[1732085139267,0.05402,92461.0,92458.0,0.32852486]
[1732085139564,0.05402,92461.0,92459.0,0.32852486]
[1732085139766,0.05402,92461.0,92455.0,0.3608]
[1732085139767,0.054023,92456.0,92455.0,0.3608]
[1732085139962,0.12031363,92456.0,92455.0,0.68954639]
[1732085141355,0.054028,92447.0,92445.0,0.00162226]
[1732085141552,0.0321,92455.0,92446.0,0.3415032]
[1732085141757,0.0321,92455.0,92447.0,0.39192241]
[1732085141758,0.054026,92451.0,92447.0,0.39192241]
[1732085141976,0.054026,92451.0,92448.0,0.32563178]
[1732085142158,0.054026,92451.0,92447.0,0.06629063]
[1732085142159,0.054026,92451.0,92449.0,0.32563178]
[1732085142461,0.054026,92451.0,92447.0,0.06629063]
[1732085142665,0.054026,92451.0,92448.0,0.32539495]
[1732085142853,0.054026,92451.0,92449.0,0.32539495]
[1732085143160,0.054026,92451.0,92447.0,0.06629063]
[1732085143353,0.054026,92451.0,92448.0,0.32539566]
[1732085143559,0.054026,92451.0,92449.0,0.32539566]
[1732085143761,0.054026,92451.0,92450.0,0.28139565]
[1732085144149,0.0963848,92451.0,92447.0,0.06629063]
[1732085146665,0.054027,92450.0,92447.0,0.06629063]
[1732085146860,0.054027,92450.0,92449.0,0.25898698]
[1732085147366,0.054027,92450.0,92448.0,0.25898698]
[1732085147871,0.054027,92450.0,92449.0,0.25898698]
[1732085148162,0.054027,92450.0,92448.0,0.25898698]
[1732085150159,0.0423588,92451.0,92447.0,0.32527761]
[1732085150462,0.09344,92456.0,92448.0,0.25898698]
[1732085150463,0.054027,92449.0,92448.0,0.25898698]
[1732085150669,0.054027,92449.0,92447.0,0.06629063]
[1732085150670,0.054027,92449.0,92447.0,0.32527761]
[1732085150967,0.054027,92449.0,92447.0,0.06629063]
[1732085151266,0.09344,92456.0,92447.0,0.06629063]
[1732085151476,0.054023,92456.0,92455.0,0.06629063]
[1732085151661,8.843e-05,92460.0,92459.0,0.054021]
[1732085151968,8.843e-05,92460.0,92459.0,0.18660226]
[1732085152272,0.3608,92481.0,92473.0,0.054013]
[1732085152568,0.3608,92481.0,92474.0,0.06629063]
[1732085152871,0.059007,92484.0,92480.0,0.054009]
[1732085153062,0.059007,92484.0,92482.0,0.31274455]
[1732085153063,0.054007,92484.0,92482.0,0.31274455]
[1732085153267,4.067e-05,92483.0,92482.0,1.554008]
[1732085156069,4.067e-05,92483.0,92482.0,0.054008]
[1732085156571,4.067e-05,92483.0,92482.0,0.24790957]
[1732085157264,4.067e-05,92483.0,92482.0,0.054008]
[1732085158070,4.067e-05,92483.0,92482.0,0.24790957]
[1732085158268,4.067e-05,92483.0,92482.0,0.054008]
[1732085158675,4.067e-05,92483.0,92481.0,1.72762157]
[1732085158877,4.067e-05,92483.0,92481.0,1.72650157]
[1732085159274,0.05404767,92483.0,92481.0,1.5326]
[1732085160971,0.05404767,92483.0,92482.0,0.19390157]
[1732085161170,0.05404767,92483.0,92481.0,0.22758157]
[1732085161475,0.05404767,92483.0,92481.0,0.0326]
[1732085162174,0.05404767,92483.0,92482.0,0.19374428]
[1732085162682,0.05404767,92483.0,92482.0,0.054008]
[1732085163380,0.05404767,92483.0,92482.0,0.24772855]
[1732085165070,0.05404767,92483.0,92482.0,0.054008]
[1732085165264,0.05404767,92483.0,92482.0,0.24768637]
[1732085165780,0.05404767,92483.0,92482.0,0.054008]
[1732085166177,4.067e-05,92483.0,92482.0,0.054008]
[1732085168478,4.067e-05,92483.0,92482.0,0.24757832]
[1732085169184,4.067e-05,92483.0,92482.0,0.054008]
[1732085169689,4.067e-05,92483.0,92482.0,0.0704276]
[1732085169886,4.067e-05,92483.0,92482.0,0.26396902]
[1732085170076,4.067e-05,92483.0,92482.0,0.0704276]
[1732085171086,4.067e-05,92483.0,92482.0,0.054008]
[1732085171293,4.067e-05,92483.0,92482.0,0.15870916]
[1732085171470,0.005,92495.0,92494.0,0.054001]
[1732085171672,0.065585,92522.0,92504.0,0.053995]
[1732085171673,0.005,92506.0,92504.0,0.053995]
[1732085171979,0.053993,92508.0,92504.0,0.053995]
[1732085173484,0.0373,92516.0,92504.0,0.15869616]
[1732085173676,0.053989,92514.0,92504.0,0.11469615]
[1732085173877,0.053989,92514.0,92504.0,0.29818419]
[1732085174076,0.053992,92510.0,92504.0,0.15869616]
[1732085174282,0.0373,92516.0,92504.0,0.15869616]
[1732085174585,0.053995,92504.0,92502.0,0.3608]
[1732085175285,0.053995,92504.0,92503.0,1.5]
[1732085176989,0.0373,92516.0,92503.0,1.5]
[1732085176990,0.0435405,92505.0,92503.0,1.65869616]
[1732085177174,0.005,92516.0,92504.0,0.25797737]
[1732085177378,0.053987,92517.0,92515.0,0.46550116]
[1732085178474,0.053987,92517.0,92515.0,0.51948916]
[1732085178876,0.053985,92522.0,92517.0,0.053987]
[1732085179086,0.09584,92523.0,92517.0,0.053987]
[1732085179087,0.053985,92521.0,92517.0,0.053987]
[1732085179385,0.13652321,92523.0,92517.0,0.053987]
[1732085179386,0.053986,92519.0,92517.0,0.053987]
[1732085182277,0.005,92527.0,92515.0,0.10470116]
[1732085182586,0.053981,92528.0,92526.0,0.10470116]
[1732085183016,0.053988,92515.0,92514.0,0.005]
[1732085183177,0.05399,92513.0,92511.0,0.52057216]
[1732085183378,0.05399,92513.0,92511.0,0.46550116]
[1732085183886,0.05399,92513.0,92511.0,0.51949216]
[1732085186781,0.05399,92513.0,92511.0,0.15869216]
[1732085187273,0.005,92523.0,92521.0,0.053985]
[1732085187478,0.053982,92527.0,92524.0,0.053983]
[1732085187679,0.053979,92532.0,92523.0,0.053984]
[1732085187884,0.053979,92532.0,92522.0,0.46658116]
[1732085187885,0.086578,92533.0,92532.0,0.10470116]
[1732085188783,0.086578,92533.0,92532.0,0.06070115]
[1732085192486,0.053984,92523.0,92522.0,0.46550116]
[1732085193489,0.053981,92528.0,92524.0,0.053983]
[1732085193886,0.03320001,92533.0,92524.0,0.053983]
[1732085193887,0.053982,92527.0,92524.0,0.053983]
[1732085194081,0.053982,92527.0,92522.0,0.46662116]
[1732085194287,0.053982,92527.0,92522.0,0.46550116]
[1732085194487,0.053982,92527.0,92523.0,0.053984]
[1732085195298,0.053982,92527.0,92524.0,0.053983]
[1732085195495,0.053982,92527.0,92525.0,0.053983]
[1732085195797,0.053982,92526.0,92525.0,0.053983]
[1732085199288,0.053982,92526.0,92525.0,0.24749284]
[1732085199687,0.053982,92526.0,92525.0,0.053983]
[1732085201188,0.0326,92533.0,92524.0,0.25797737]
[1732085201502,0.05398,92530.0,92529.0,0.19384615]
[1732085202188,0.0326,92533.0,92524.0,0.25797737]
[1732085202388,0.053982,92526.0,92524.0,0.25797737]
[1732085202589,0.0326,92533.0,92524.0,0.25797737]
[1732085202793,0.0326,92533.0,92529.0,0.19387577]
[1732085202998,0.05398,92530.0,92529.0,0.19387577]
[1732085203199,0.0326,92533.0,92525.0,0.25797737]
[1732085203501,0.414784,92531.0,92530.0,0.19390151]
[1732085203692,0.053984,92531.0,92530.0,0.1499015]
[1732085203889,0.053984,92531.0,92522.0,0.52057016]
[1732085203890,0.3608,92531.0,92522.0,0.52057016]
[1732085204097,0.053989,92523.0,92522.0,0.51949016]
[1732085204302,0.053989,92523.0,92522.0,0.3608]
[1732085204486,0.3608,92523.0,92514.0,0.25797737]
[1732085204685,0.3608,92515.0,92510.0,0.005]
[1732085204893,0.053994,92514.0,92510.0,0.053996]
[1732085205190,0.053995,92513.0,92510.0,0.053996]
[1732085205392,0.053995,92513.0,92510.0,0.10173988]
[1732085205604,0.053995,92513.0,92510.0,0.053996]
[1732085206302,0.46550116,92515.0,92507.0,0.25797737]
[1732085206500,0.053997,92510.0,92506.0,0.25797737]
[1732085206805,0.0633,92512.0,92505.0,0.25797737]
[1732085206806,0.053999,92506.0,92505.0,0.25797737]
[1732085206988,0.0633,92512.0,92505.0,0.25797737]
[1732085207301,0.053999,92505.0,92504.0,0.25797737]
[1732085207488,0.053999,92505.0,92503.0,1.75905737]
[1732085207695,0.053999,92505.0,92503.0,1.5]
[1732085207890,0.053999,92505.0,92503.0,1.75797737]
[1732085208487,0.053999,92505.0,92503.0,1.5]
[1732085210503,0.3608,92507.0,92503.0,1.5]
[1732085210705,0.3608,92507.0,92506.0,0.053999]
[1732085212411,0.414798,92507.0,92506.0,0.053999]
[1732085216603,0.053995,92512.0,92511.0,0.053994]
[1732085216908,0.053995,92512.0,92511.0,0.15869516]
[1732085218809,0.053995,92512.0,92511.0,0.10470116]
[1732085219616,0.151194,92517.0,92516.0,0.053993]
[1732085220116,0.3608,92519.0,92511.0,0.15278727]
[1732085220317,0.0972,92520.0,92519.0,0.053991]
[1732085220528,0.053987,92527.0,92526.0,0.053986]
[1732085220708,0.053987,92527.0,92526.0,0.15868716]
[1732085222016,0.00162192,92532.0,92526.0,0.10470116]
[1732085222313,0.05560592,92532.0,92531.0,0.053984]
[1732085226824,0.00162192,92532.0,92531.0,0.053984]
[1732085230028,0.05560592,92532.0,92531.0,0.053984]
[1732085232616,0.05560592,92532.0,92531.0,0.12385844]
[1732085233018,0.05560592,92532.0,92526.0,0.2583422]
[1732085233019,0.00162192,92532.0,92526.0,0.2583422]
[1732085233215,0.00162192,92532.0,92516.0,0.26348857]
[1732085233216,0.3608,92527.0,92516.0,0.26348857]
[1732085233524,0.053987,92527.0,92526.0,0.06987444]
[1732085233729,0.053987,92527.0,92526.0,0.02587443]
[1732085234223,0.414787,92527.0,92526.0,0.02587443]
[1732085235550,0.053987,92527.0,92526.0,0.02587443]
[1732085236825,0.053987,92527.0,92526.0,0.07986143]
[1732085238127,0.053987,92527.0,92526.0,0.053987]
[1732085238332,0.053987,92527.0,92526.0,0.12386144]
[1732085238532,0.053987,92527.0,92526.0,0.06987444]
[1732085238832,0.053989,92524.0,92522.0,0.053989]
[1732085239218,0.053989,92524.0,92521.0,0.06987444]
[1732085239219,0.0644,92531.0,92521.0,0.06987444]
[1732085239423,0.053989,92522.0,92521.0,0.06987444]
[1732085240023,0.053989,92522.0,92521.0,0.32836301]
[1732085240232,0.053989,92522.0,92521.0,0.38235301]
[1732085241227,0.053989,92522.0,92521.0,0.38249989]
[1732085241533,0.053989,92522.0,92521.0,0.12386444]
[1732085245620,0.053989,92522.0,92521.0,0.77900657]
[1732085246320,0.053989,92522.0,92521.0,0.45633436]
[1732085246924,0.053989,92522.0,92521.0,0.44749151]
[1732085247234,0.053989,92522.0,92521.0,0.45646873]
[1732085247935,0.053989,92522.0,92521.0,0.12386444]
[1732085248131,0.053989,92522.0,92521.0,0.45651538]
[1732085248330,0.053989,92522.0,92521.0,0.12386444]
[1732085248731,0.053989,92522.0,92521.0,0.07986443]
[1732085248930,0.053989,92522.0,92521.0,0.40361354]
[1732085249142,0.053989,92522.0,92521.0,0.41247499]
[1732085252731,0.053989,92522.0,92521.0,0.35893316]
[1732085252935,0.053989,92522.0,92521.0,0.33305873]
[1732085253327,0.053989,92522.0,92521.0,0.38704873]
[1732085256239,0.053989,92522.0,92521.0,0.33305873]
[1732085257025,0.04917115,92523.0,92521.0,0.32387884]
[1732085257340,0.09696,92529.0,92521.0,0.32387884]
[1732085257341,0.053989,92522.0,92521.0,0.32387884]
[1732085257639,0.053989,92522.0,92521.0,0.33300582]
[1732085257837,0.053989,92522.0,92521.0,0.65690153]
[1732085258231,0.053989,92522.0,92521.0,0.33300582]
[1732085259233,0.14595366,92529.0,92519.0,0.32391435]
[1732085259534,0.14595366,92529.0,92526.0,0.25915161]
[1732085259737,0.053986,92527.0,92526.0,0.25915161]
[1732085260543,0.14595366,92529.0,92526.0,0.25916147]
[1732085260845,0.14595366,92529.0,92526.0,0.25916212]
[1732085261339,0.053987,92526.0,92525.0,0.25916212]
[1732085261543,0.14595366,92529.0,92525.0,0.2591765]
[1732085262832,0.053987,92526.0,92525.0,0.2591765]
[1732085263635,0.053989,92523.0,92520.0,0.33392549]
[1732085263841,0.053989,92523.0,92520.0,0.3239355]
[1732085264143,0.053989,92523.0,92522.0,0.3239355]
[1732085264331,0.053989,92523.0,92522.0,0.65763115]
[1732085265248,0.053989,92523.0,92522.0,0.38768465]
[1732085265432,0.053989,92523.0,92522.0,0.71165971]
[1732085265639,0.053989,92523.0,92522.0,0.74235971]
[1732085265944,0.053989,92523.0,92522.0,0.41838465]
[1732085266651,0.053989,92522.0,92521.0,0.32397484]
[1732085266840,0.3608,92523.0,92520.0,0.32397548]
[1732085267147,0.3608,92523.0,92512.0,0.0304]
[1732085267148,0.053991,92519.0,92518.0,0.32397548]
[1732085267349,0.053992,92518.0,92517.0,0.32397548]
[1732085267545,0.06987444,92521.0,92516.0,0.32397548]
[1732085267744,0.053992,92517.0,92516.0,0.32397548]
[1732085268339,0.053992,92517.0,92516.0,0.32396243]
[1732085268549,0.053992,92517.0,92516.0,0.65753387]
[1732085268847,0.053992,92517.0,92516.0,0.33357144]
[1732085269045,0.053993,92516.0,92514.0,0.053994]
[1732085269242,0.053993,92516.0,92515.0,0.387584]
[1732085270735,0.053993,92515.0,92514.0,0.3239125]
[1732085270937,0.414793,92515.0,92514.0,0.3239125]
[1732085271353,0.414793,92515.0,92512.0,0.42418694]
[1732085271533,0.414793,92515.0,92512.0,0.3239125]
[1732085271534,0.43067444,92515.0,92512.0,0.3239125]
[1732085271742,0.43067444,92515.0,92510.0,0.3239125]
[1732085272043,0.43067444,92515.0,92506.0,0.084698]
[1732085272044,0.43067444,92515.0,92506.0,0.4086105]
[1732085272233,0.053994,92514.0,92513.0,0.25911304]
[1732085272438,0.053994,92514.0,92503.0,1.50108]
[1732085272439,0.053995,92512.0,92511.0,0.25911304]
[1732085272645,0.43131444,92515.0,92510.0,0.25911304]
[1732085272851,0.053996,92511.0,92510.0,0.25911304]
[1732085273448,0.053994,92514.0,92510.0,0.25911304]
[1732085273649,0.43123445,92515.0,92510.0,0.25911304]
[1732085273650,0.053996,92511.0,92510.0,0.25911304]
[1732085274648,0.053997,92509.0,92506.0,0.053999]
[1732085275038,0.3608,92513.0,92506.0,0.053999]
[1732085275244,0.3608,92513.0,92510.0,0.25894428]
[1732085275446,0.053996,92510.0,92509.0,0.25894428]
[1732085275640,0.053997,92509.0,92508.0,0.25894428]
[1732085276553,0.053998,92508.0,92507.0,0.25894428]
[1732085278341,0.3608,92513.0,92506.0,0.25894428]
[1732085278546,0.053998,92507.0,92506.0,0.25894428]
[1732085278756,0.053998,92507.0,92506.0,0.21494427]
[1732085279258,0.3608,92513.0,92503.0,1.8789925]
[1732085279558,0.3608,92505.0,92503.0,1.8779125]
[1732085280159,0.053999,92506.0,92504.0,0.3779125]
[1732085280349,0.053999,92506.0,92505.0,0.65590866]
[1732085280753,0.053999,92506.0,92505.0,0.32351719]
[1732085280952,0.053999,92506.0,92504.0,0.054]
[1732085281352,0.053999,92506.0,92503.0,1.5]
[1732085281551,0.053999,92506.0,92505.0,0.053999]
[1732085282158,0.053999,92506.0,92505.0,0.12387344]
[1732085283659,0.054,92504.0,92503.0,1.82351719]
[1732085283865,0.48467444,92504.0,92503.0,1.5]
[1732085284867,0.4148,92504.0,92503.0,1.5]
[1732085292355,0.054,92504.0,92503.0,1.5]
[1732085292563,0.4148,92504.0,92503.0,1.5]
[1732085293765,0.054001,92502.0,92500.0,0.054002]
[1732085294769,0.054001,92502.0,92501.0,1.5]
[1732085296972,0.054001,92502.0,92501.0,1.554002]
[1732085300479,0.054001,92502.0,92501.0,2.21030131]
[1732085300864,0.054001,92502.0,92501.0,1.87751919]
[1732085301270,0.054001,92502.0,92501.0,2.21026679]
[1732085301466,0.054001,92502.0,92501.0,1.8867496]
[1732085304577,0.054001,92502.0,92501.0,1.8869543]
[1732085308794,0.054001,92502.0,92501.0,0.3869543]
[1732085309689,0.054001,92502.0,92501.0,1.8869543]
[1732085309890,0.054001,92502.0,92501.0,1.8329523]
[1732085312194,0.06987444,92504.0,92499.0,0.32407887]
[1732085312195,0.054002,92500.0,92499.0,0.32407887]
[1732085312391,0.12387644,92500.0,92499.0,0.32407887]
[1732085312611,0.054003,92499.0,92498.0,0.32407887]
[1732085312812,0.16347444,92500.0,92498.0,0.3331502]
[1732085313101,0.21747644,92500.0,92499.0,0.32409805]
[1732085313308,0.21747644,92500.0,92499.0,0.66464863]
[1732085313693,0.21747644,92500.0,92499.0,0.66464628]
[1732085314307,0.21747644,92500.0,92499.0,0.6647373]
[1732085314612,0.21747644,92500.0,92499.0,0.3240957]
[1732085315003,0.21747644,92500.0,92493.0,0.44169749]
[1732085315004,0.16347444,92500.0,92498.0,0.3240957]
[1732085315204,0.054003,92499.0,92498.0,0.3240957]
[1732085316203,0.21130728,92500.0,92497.0,0.3240957]
[1732085316407,0.414803,92498.0,92497.0,0.3240957]
[1732085316607,0.414803,92498.0,92497.0,0.6649243]
[1732085317299,0.414803,92498.0,92497.0,0.3408286]
[1732085319103,0.414803,92498.0,92497.0,0.34061713]
[1732085319714,0.414803,92498.0,92497.0,0.39462113]
[1732085319903,0.09356,92500.0,92499.0,0.054003]
[1732085320218,0.09356,92500.0,92499.0,0.39462013]
[1732085320417,0.054002,92501.0,92499.0,0.39462013]
[1732085320601,0.054002,92501.0,92500.0,0.41049157]
[1732085323718,0.054002,92501.0,92500.0,0.36649156]
[1732085324022,0.054002,92501.0,92500.0,0.06987444]
[1732085326420,0.054002,92501.0,92500.0,0.39382351]
[1732085326618,0.054002,92501.0,92500.0,0.06987444]
[1732085327018,0.0489504,92503.0,92499.0,0.32394907]
[1732085327019,0.11882484,92503.0,92499.0,0.32394907]
[1732085327221,0.054003,92498.0,92497.0,0.32394907]
[1732085327424,0.054003,92498.0,92496.0,0.0301]
[1732085327622,0.054003,92498.0,92496.0,0.084104]
[1732085328818,0.06987444,92503.0,92496.0,0.084104]
[1732085329023,0.054004,92497.0,92496.0,0.084104]
[1732085332924,0.054004,92497.0,92496.0,0.0301]
[1732085333330,0.054004,92497.0,92496.0,0.084105]
[1732085334215,0.054004,92497.0,92496.0,0.0301]
[1732085334411,0.054004,92497.0,92496.0,0.32395837]
[1732085334820,0.054005,92496.0,92495.0,0.32395837]
[1732085335226,0.054005,92495.0,92494.0,0.32395837]
[1732085335423,0.054006,92493.0,92492.0,1.50108]
[1732085335729,0.054006,92493.0,92492.0,1.5]
[1732085337525,0.12388044,92493.0,92492.0,1.5]
[1732085337938,0.054008,92490.0,92489.0,0.324057]
[1732085338228,0.414808,92490.0,92489.0,7.709e-05]
[1732085338813,0.054009,92488.0,92487.0,0.00108]
[1732085339012,0.3608,92490.0,92486.0,0.32397991]
[1732085339013,0.05401,92487.0,92486.0,0.32397991]
[1732085339326,0.05401,92486.0,92485.0,0.32397991]
[1732085339529,0.05401,92486.0,92485.0,0.66185088]
[1732085339726,7.709e-05,92486.0,92485.0,1.82385481]
[1732085339925,0.05408709,92486.0,92485.0,1.5]
[1732085341226,0.05408709,92486.0,92485.0,1.82385481]
[1732085341430,0.05408709,92486.0,92485.0,1.5]
[1732085343729,0.05408709,92486.0,92485.0,1.83795005]
[1732085343923,0.05408709,92486.0,92485.0,1.5]
[1732085344116,0.05408709,92486.0,92485.0,1.8236747]
[1732085344319,0.05408709,92486.0,92485.0,1.5]
[1732085345920,0.05408709,92486.0,92482.0,0.3236747]
[1732085345921,0.054012,92484.0,92482.0,0.3236747]
[1732085346119,0.054013,92482.0,92481.0,0.3236747]
[1732085346318,0.054013,92482.0,92478.0,0.32529653]
[1732085346319,0.054015,92479.0,92478.0,0.32529653]
[1732085346521,0.054015,92479.0,92478.0,0.66263408]
[1732085346917,0.054015,92479.0,92478.0,2.16263408]
[1732085347329,0.054015,92479.0,92478.0,1.50162183]
[1732085352340,0.10149279,92479.0,92478.0,1.50162183]
[1732085352525,0.10149279,92479.0,92478.0,0.26041522]
[1732085352726,0.10149279,92479.0,92478.0,0.00162183]
[1732085353737,0.054017,92474.0,92473.0,0.21641521]
[1732085354541,0.054018,92473.0,92471.0,0.12389344]
[1732085355231,0.054015,92478.0,92472.0,0.054019]
[1732085355537,0.054017,92475.0,92474.0,0.06987444]
[1732085355938,0.054017,92475.0,92474.0,1.56987444]
[1732085357928,0.09344,92477.0,92474.0,1.56987444]
[1732085358134,0.09344,92477.0,92476.0,0.054016]
[1732085360935,0.054015,92479.0,92476.0,0.054016]
[1732085361241,0.41067031,92480.0,92479.0,0.054015]
[1732085361443,0.4101103,92480.0,92479.0,0.12388944]
[1732085362541,0.4641243,92480.0,92479.0,0.12388944]
[1732085364934,0.4641243,92480.0,92479.0,0.054015]
[1732085365834,0.4101103,92480.0,92477.0,0.3236747]
[1732085366038,0.054015,92479.0,92476.0,0.47756514]
[1732085366237,0.054015,92479.0,92478.0,0.3236747]
[1732085366946,0.054015,92479.0,92477.0,0.3236747]
[1732085367136,0.054015,92479.0,92478.0,0.3236747]
[1732085367337,0.054015,92479.0,92478.0,0.66000467]
[1732085367645,0.054015,92479.0,92478.0,0.66019332]
[1732085368035,0.054015,92479.0,92478.0,0.33632997]
[1732085368753,0.054015,92479.0,92478.0,0.29232996]
[1732085369452,0.054015,92479.0,92477.0,0.054016]
[1732085371146,0.054015,92479.0,92477.0,0.37791403]
[1732085371844,0.0493103,92480.0,92477.0,0.32389803]
[1732085372149,0.054014,92479.0,92478.0,0.054015]
[1732085372847,0.3608,92481.0,92476.0,0.42377247]
[1732085373033,0.054016,92477.0,92476.0,0.39377247]
[1732085376146,0.054016,92477.0,92476.0,0.06987444]
[1732085383744,0.054016,92477.0,92476.0,0.3624961]
[1732085387254,0.3608,92481.0,92476.0,0.3624961]
[1732085387553,0.3608,92481.0,92480.0,0.054014]
[1732085387949,0.19501267,92482.0,92480.0,0.054014]
[1732085388147,0.19501267,92482.0,92480.0,0.37821847]
[1732085388354,0.19501267,92482.0,92480.0,0.054014]
[1732085388756,0.19501267,92482.0,92481.0,0.06987444]
[1732085389951,0.054014,92480.0,92479.0,0.32420447]
[1732085390154,0.054014,92480.0,92479.0,0.06987444]
[1732085391753,0.054014,92480.0,92479.0,0.73134037]
[1732085391948,0.054014,92480.0,92479.0,0.06987444]
[1732085392560,0.054014,92480.0,92479.0,0.40723944]
[1732085393649,0.14099967,92482.0,92481.0,0.054013]
[1732085393854,0.14099967,92482.0,92481.0,0.391378]
[1732085394051,0.10169267,92482.0,92479.0,0.4480945]
[1732085394246,0.19501267,92482.0,92480.0,0.7156017]
[1732085394448,0.19501267,92482.0,92481.0,0.33738236]
[1732085395462,0.19501267,92482.0,92480.0,0.054014]
[1732085396060,0.19501267,92482.0,92481.0,0.33724269]
[1732085396756,0.19501267,92482.0,92480.0,0.054014]
[1732085396952,0.19501267,92482.0,92481.0,0.32420515]
[1732085397351,0.19501267,92482.0,92481.0,0.66144793]
[1732085398265,0.19501267,92482.0,92481.0,0.32420515]
[1732085398657,0.19501267,92482.0,92481.0,0.28020514]
[1732085399970,0.19501267,92482.0,92479.0,0.06987444]
[1732085400173,0.19501267,92482.0,92481.0,0.054013]
[1732085401056,0.04767967,92482.0,92481.0,0.054013]
[1732085401265,0.09332,92483.0,92479.0,0.06987444]
[1732085401569,0.09332,92483.0,92482.0,0.12388744]
[1732085402364,0.09339709,92486.0,92482.0,0.06987444]
[1732085402567,0.054012,92483.0,92482.0,0.06987444]
[1732085403164,0.054012,92483.0,92480.0,0.116214]
[1732085403373,0.09339709,92486.0,92482.0,0.06987444]
[1732085403571,0.054012,92483.0,92482.0,0.06987444]
[1732085404567,0.09339709,92486.0,92474.0,1.50108]
[1732085404768,0.054017,92475.0,92474.0,1.5]
[1732085405479,0.054017,92475.0,92470.0,0.054019]
[1732085405669,0.054017,92475.0,92467.0,0.3608]
[1732085405861,0.054017,92475.0,92474.0,0.06987444]
[1732085408366,0.054017,92475.0,92474.0,1.56987444]
[1732085408572,0.054017,92475.0,92474.0,2.29841754]
[1732085409483,0.054017,92475.0,92474.0,1.90937839]
[1732085413574,0.054017,92475.0,92474.0,2.29841327]
[1732085413887,0.054017,92475.0,92474.0,2.25441326]
[1732085415381,0.054017,92475.0,92474.0,1.86537838]
[1732085416094,0.054017,92475.0,92474.0,1.52587443]
[1732085419091,0.054017,92475.0,92474.0,0.02587443]
[1732085420510,0.054017,92475.0,92474.0,0.28504276]
[1732085422627,0.054017,92475.0,92474.0,0.02587443]
[1732085424913,0.414817,92475.0,92474.0,0.02587443]
[1732085428721,0.3608,92475.0,92473.0,0.06987444]
[1732085428910,0.054017,92474.0,92473.0,0.06987444]
[1732085431319,0.414817,92474.0,92473.0,0.06987444]
[1732085431911,0.054017,92474.0,92473.0,0.06987444]
[1732085432221,0.414817,92474.0,92473.0,0.06987444]
[1732085433519,0.054021,92469.0,92468.0,0.06987444]
[1732085433713,0.054021,92469.0,92468.0,0.40872288]
[1732085434327,0.3608,92474.0,92468.0,0.46274388]
[1732085434328,0.414818,92474.0,92468.0,0.46274388]
[1732085434526,0.414818,92474.0,92469.0,0.33884844]
[1732085434527,0.3608,92474.0,92469.0,0.33884844]
[1732085434828,0.3608,92474.0,92468.0,0.12389544]
[1732085434829,0.05402,92470.0,92468.0,0.12389544]
[1732085435013,0.05402,92470.0,92469.0,0.33860382]
[1732085435516,0.3608,92474.0,92470.0,0.05402]
[1732085435710,7.709e-05,92486.0,92473.0,0.50054888]
[1732085435912,7.709e-05,92486.0,92485.0,0.054011]
[1732085436815,0.0481617,92486.0,92485.0,0.054011]
[1732085437009,7.709e-05,92486.0,92485.0,0.054011]
[1732085437516,7.709e-05,92486.0,92485.0,0.31305519]
[1732085438913,7.709e-05,92486.0,92485.0,0.054011]
[1732085439117,7.709e-05,92486.0,92485.0,0.31305519]
[1732085439418,7.709e-05,92486.0,92485.0,0.054011]
[1732085439817,7.709e-05,92486.0,92485.0,0.31305519]
[1732085440023,7.709e-05,92486.0,92485.0,0.054011]
[1732085440917,7.709e-05,92486.0,92485.0,0.31305519]
[1732085441512,0.054011,92485.0,92484.0,0.25904419]
[1732085441811,0.054011,92485.0,92484.0,0.25898555]
[1732085442013,0.054011,92485.0,92483.0,0.25898555]
[1732085442421,0.054011,92485.0,92484.0,0.25898555]
[1732085442626,0.054011,92485.0,92483.0,0.25898555]
[1732085442812,0.054011,92485.0,92482.0,0.12388744]
[1732085443009,0.054011,92485.0,92483.0,0.054012]
[1732085443826,0.054011,92485.0,92482.0,0.06987444]
[1732085444029,0.054011,92485.0,92484.0,0.25897661]
[1732085444427,0.054011,92485.0,92482.0,0.06987444]
[1732085444817,0.054011,92485.0,92483.0,0.054012]
[1732085445514,0.054012,92484.0,92482.0,0.06987444]
[1732085448116,0.054012,92484.0,92482.0,0.12388744]
[1732085448520,0.09307709,92486.0,92482.0,0.06987444]
[1732085448730,7.709e-05,92486.0,92485.0,0.054011]
[1732085448930,0.01,92497.0,92496.0,0.054005]
[1732085449137,0.0016224,92498.0,92497.0,0.054004]
[1732085450219,0.0016224,92498.0,92497.0,0.39385182]